bitfinex-derivatives/quotes_ETHF0:USTF0_20260208
["timestamp","ask_amount","ask_price","bid_price","bid_amount"]
[1770578265768,1.91922242,2115.8,2114.2,0.34281003]
[1770578265769,0.54956124,2115.3,2114.2,0.5534142]
[1770578267367,0.54956124,2115.3,2114.2,0.00530528]
[1770578267771,0.54956124,2115.3,2114.2,0.5534142]
[1770578269271,0.54956124,2115.2,2114.2,0.5534142]
[1770578269472,0.54956124,2115.2,2114.2,0.00530528]
[1770578269771,0.54956124,2115.2,2114.2,0.5534142]
[1770578275580,0.54956124,2115.3,2114.4,0.54810892]
[1770578277179,0.54956124,2115.3,2114.4,0.78475892]
[1770578277380,0.54956124,2115.3,2114.5,0.54810892]
[1770578279380,0.54956124,2115.3,2114.3,0.54810892]
[1770578280383,7.21378366,2115.3,2114.2,0.00530528]
[1770578280584,0.54956124,2115.2,2114.2,0.00530528]
[1770578280783,0.54956124,2115.2,2114.2,0.5534142]
[1770578281485,10.203,2115.9,2114.2,0.5534142]
[1770578281486,0.54956124,2115.6,2114.5,0.23663]
[1770578281679,0.54956124,2115.6,2114.6,0.23663]
[1770578281974,0.54956124,2115.6,2114.7,0.54810892]
[1770578282376,0.54956124,2115.9,2114.7,0.54810892]
[1770578283082,5.29456124,2116.1,2114.9,0.54810892]
[1770578283389,0.54956124,2116.1,2115.3,0.54810892]
[1770578283581,0.54956124,2116.3,2115.3,0.54810892]
[1770578284390,0.54956124,2116.5,2115.3,0.54810892]
[1770578284581,0.54956124,2116.4,2115.3,0.54810892]
[1770578285483,0.55422294,2116.4,2115.3,0.54810892]
[1770578289692,0.54956124,2116.0,2115.0,0.54810892]
[1770578291390,0.54956124,2116.0,2114.8,0.54810892]
[1770578291999,0.54956124,2115.6,2114.3,3.35252347]
[1770578292190,0.54956124,2115.6,2114.4,0.54810892]
[1770578297903,0.54956124,2115.6,2114.4,0.78475892]
[1770578298196,0.54969722,2115.9,2114.7,0.543621]
[1770578301407,0.54969722,2115.7,2114.7,0.543621]
[1770578302208,0.54969722,2115.6,2114.7,0.543621]
[1770578304501,0.54969722,2115.6,2114.6,0.23663]
[1770578304805,0.54969722,2115.6,2114.6,0.780251]
[1770578305002,0.54969722,2115.6,2114.7,0.543621]
[1770578308511,0.54969722,2115.3,2114.5,0.543621]
[1770578308810,0.54969722,2115.3,2114.3,0.543621]
[1770578310213,0.54969722,2115.2,2114.3,0.543621]
[1770578311115,0.54969722,2115.0,2114.2,0.54892628]
[1770578311614,0.54969722,2115.2,2114.2,0.54892628]
[1770578311816,0.54969722,2115.1,2114.2,0.54892628]
[1770578316818,0.54969722,2115.1,2113.6,3.34832409]
[1770578316819,0.54969722,2114.6,2113.6,3.34832409]
[1770578317114,0.54969722,2115.0,2113.6,0.780361]
[1770578317320,0.54969722,2115.0,2113.7,0.543621]
[1770578317520,0.54969722,2115.0,2113.8,0.543621]
[1770578318013,0.5536435,2115.0,2113.8,0.54704669]
[1770578318720,0.54969722,2114.8,2113.8,0.54704669]
[1770578320724,0.54969722,2114.5,2113.5,0.543621]
[1770578321225,0.54969722,2114.4,2113.5,0.543621]
[1770578321525,0.54969722,2114.3,2113.3,0.543621]
[1770578321727,0.54969722,2114.2,2113.5,0.0052414]
[1770578322118,0.54969722,2114.2,2113.5,0.5488624]
[1770578323226,5.28169722,2114.9,2113.5,0.5488624]
[1770578323423,0.54969722,2114.8,2113.5,0.5488624]
[1770578323619,0.54969722,2114.7,2113.5,0.5488624]
[1770578327425,5.28169722,2114.7,2113.5,0.5488624]
[1770578327622,0.55414543,2114.6,2113.5,0.5488624]
[1770578328129,0.55414543,2114.6,2113.6,0.56493822]
[1770578328329,0.55414543,2114.6,2113.5,0.90146857]
[1770578328531,1.91958197,2114.1,2113.0,0.56493822]
[1770578328723,0.56493822,2113.9,2112.6,0.56493822]
[1770578329029,5.29693822,2113.7,2112.6,0.56493822]
[1770578329224,0.56493822,2113.6,2112.6,0.56493822]
[1770578329420,0.56493822,2113.6,2112.6,0.56936401]
[1770578335930,0.56493822,2113.6,2112.6,0.00442579]
[1770578336128,0.5555841,2113.4,2112.2,0.56493822]
[1770578336926,0.5555841,2113.3,2112.2,0.56493822]
[1770578337131,0.56139601,2113.3,2112.2,0.56905798]
[1770578338133,0.54395762,2113.1,2112.2,0.56905798]
[1770578338529,0.54395762,2113.1,2112.2,0.00411976]
[1770578338729,0.54395762,2113.0,2112.2,0.00411976]
[1770578338933,0.54395762,2113.0,2112.2,0.56905798]
[1770578340838,0.54618052,2113.2,2112.2,0.56905798]
[1770578341444,0.55199243,2113.3,2112.2,0.56905798]
[1770578342243,0.55199243,2113.3,2112.3,0.56493822]
[1770578343946,0.00581191,2113.3,2112.3,0.56493822]
[1770578344147,0.00581191,2113.3,2112.6,0.56493822]
[1770578344544,0.00581191,2113.3,2112.8,0.56493822]
[1770578344745,0.55744935,2113.9,2112.8,0.56493822]
[1770578345650,0.56092318,2113.9,2112.8,0.56493822]
[1770578348054,0.56092318,2113.9,2112.9,0.56493822]
[1770578348657,0.56092318,2113.9,2113.0,0.56493822]
[1770578349358,0.00347383,2113.9,2113.0,0.56493822]
[1770578349652,0.00347383,2113.9,2113.1,0.56493822]
[1770578349956,0.00347383,2113.9,2113.1,0.80173822]
[1770578350155,0.55236517,2114.2,2113.2,0.56493822]
[1770578351156,0.55716615,2114.2,2113.2,0.56493822]
[1770578352256,0.00480098,2114.2,2113.2,0.56493822]
[1770578353552,0.55611217,2114.2,2113.4,0.56493822]
[1770578353756,0.55611217,2114.2,2112.9,0.56493822]
[1770578353956,0.55131119,2114.1,2112.9,0.56493822]
[1770578355359,0.54836681,2114.0,2112.9,0.56493822]
[1770578357461,0.54836681,2113.8,2112.9,0.56493822]
[1770578358262,0.54836681,2113.7,2112.9,0.56493822]
[1770578359757,1.92769758,2114.2,2112.9,0.56493822]
[1770578359758,3.36139427,2114.0,2113.0,0.57120635]
[1770578359959,0.54836681,2113.9,2113.0,0.57120635]
[1770578361466,0.54836681,2113.6,2112.5,0.57120635]
[1770578368173,0.00202897,2113.6,2112.5,0.57120635]
[1770578369275,2.81505643,2113.6,2112.5,0.57120635]
[1770578369673,0.00445246,2113.5,2112.5,0.57120635]
[1770578373176,2.81747992,2113.5,2112.5,0.57120635]
[1770578373378,0.00457472,2113.4,2112.5,0.57120635]
[1770578376081,2.82098434,2113.5,2112.5,0.57120635]
[1770578376283,0.00795688,2113.4,2112.5,0.57120635]
[1770578381782,2.81302746,2113.5,2112.5,0.57120635]
[1770578381988,1.16698487,2113.6,2113.2,0.58349415]
[1770578382176,0.01347474,2114.1,2113.2,0.58349415]
[1770578383185,0.01347474,2114.1,2112.2,10.11139854]
[1770578383186,0.01347474,2114.0,2112.6,0.58349415]
[1770578383488,0.01347474,2113.6,2112.6,0.58349415]
[1770578386587,0.01679511,2113.2,2112.3,0.58184444]
[1770578388590,0.01679511,2113.2,2112.2,0.00411976]
[1770578388783,0.01679511,2113.2,2112.2,0.58635114]
[1770578401407,0.02067614,2113.4,2112.2,0.58635114]
[1770578401705,0.02067614,2113.6,2112.4,0.58294528]
[1770578402005,0.01459343,2113.5,2112.4,0.58294528]
[1770578402499,0.01459343,2113.0,2111.6,0.57536441]
[1770578402698,0.01459343,2113.0,2111.6,0.81233441]
[1770578402903,0.01459343,2113.0,2111.7,0.57536441]
[1770578403507,0.01459343,2113.0,2111.8,0.57536441]
[1770578403706,0.01459343,2113.0,2111.8,0.58075298]
[1770578406913,1.70339954,2112.7,2111.8,0.58075298]
[1770578407115,1.70339954,2113.1,2112.1,0.57536441]
[1770578407513,0.53695382,2113.0,2112.1,0.57536441]
[1770578408115,0.00408881,2113.0,2112.3,0.57536441]
[1770578408414,0.53695382,2113.3,2112.5,0.57536441]
[1770578409420,0.54090899,2113.3,2112.5,0.57536441]
[1770578411622,0.00395517,2113.3,2112.5,0.57536441]
[1770578411826,0.54090899,2113.3,2112.5,0.57536441]
[1770578413423,0.00395517,2113.3,2112.5,0.57536441]
[1770578414424,0.00395517,2113.3,2112.0,0.57536441]
[1770578414425,0.53695382,2113.0,2112.0,0.57536441]
[1770578416531,0.53695382,2113.0,2111.8,2.83901869]
[1770578416532,0.56671919,2114.7,2112.8,0.53695382]
[1770578416825,0.56671919,2114.2,2113.0,0.53695382]
[1770578417030,0.56671919,2114.2,2113.1,0.53695382]
[1770578417529,0.5718206,2114.2,2113.1,0.53695382]
[1770578417724,0.00510141,2114.2,2113.2,0.53446673]
[1770578418734,0.5718206,2114.2,2113.2,0.53446673]
[1770578426135,0.5718206,2114.2,2113.3,0.53805169]
[1770578426324,0.5718206,2114.2,2113.3,0.54255732]
[1770578427238,0.56671919,2114.7,2113.8,0.53295028]
[1770578428330,0.57209931,2114.7,2113.8,0.53295028]
[1770578434341,0.57209931,2114.7,2114.0,0.23669]
[1770578434539,0.00538012,2114.7,2114.1,0.52993607]
[1770578435238,0.57209931,2114.7,2114.1,0.52993607]
[1770578438938,6.46796943,2115.5,2113.4,2.83363012]
[1770578438939,0.56671919,2115.5,2114.6,0.52791825]
[1770578439636,0.56671919,2115.5,2114.2,0.52742245]
[1770578440038,0.57058274,2115.5,2114.2,0.52742245]
[1770578440440,0.56671919,2115.2,2113.8,0.52742245]
[1770578441042,0.56671919,2115.2,2113.9,0.52742245]
[1770578441240,0.56671919,2115.2,2114.0,0.52742245]
[1770578441633,0.56671919,2115.2,2114.2,0.23667]
[1770578442245,0.56671919,2115.2,2114.3,0.53684045]
[1770578443144,0.56671919,2115.2,2114.4,0.53684045]
[1770578445451,0.58607217,2115.5,2114.6,0.53257283]
[1770578447048,0.58607217,2115.5,2114.6,0.76920283]
[1770578447349,0.58607217,2115.5,2114.8,0.53244939]
[1770578447546,0.58607217,2115.5,2114.8,0.53689569]
[1770578447947,0.00386355,2115.5,2114.8,0.53689569]
[1770578448850,0.58607217,2115.5,2114.8,0.53689569]
[1770578449753,5.31807217,2115.5,2114.8,0.0044463]
[1770578449948,0.58220862,2115.4,2114.8,0.0044463]
[1770578451353,0.58220862,2115.4,2114.8,0.53693139]
[1770578452152,0.58220862,2115.4,2114.8,0.0044463]
[1770578453455,0.58220862,2115.2,2114.4,0.53790386]
[1770578454347,0.58220862,2115.2,2114.4,0.54314548]
[1770578460158,5.31420862,2115.2,2114.4,0.54314548]
[1770578460459,5.31420862,2115.2,2114.4,0.54168462]
[1770578460460,0.58220862,2115.1,2114.4,0.54168462]
[1770578463461,0.58220862,2115.1,2114.4,0.00524162]
[1770578463862,0.58220862,2115.1,2114.5,0.53249584]
[1770578464063,0.58220862,2115.3,2114.5,0.53249584]
[1770578464560,0.58220862,2115.6,2114.9,0.53249584]
[1770578465564,0.58740283,2115.6,2114.9,0.53249584]
[1770578466159,0.00519421,2115.6,2114.9,0.53249584]
[1770578466561,0.58740283,2115.6,2114.9,0.53249584]
[1770578467469,0.58220862,2115.4,2114.5,2.83363012]
[1770578467676,0.58220862,2115.2,2114.5,0.55675481]
[1770578469776,0.58220862,2115.1,2114.4,0.00524162]
[1770578470076,0.58220862,2114.9,2114.4,1e-08]
[1770578470678,0.58220862,2114.9,2114.4,0.55675482]
[1770578470873,0.58220862,2114.9,2114.4,1e-08]
[1770578471079,0.00519421,2115.6,2114.8,0.55675481]
[1770578472580,0.00519421,2115.6,2114.8,3.62698493]
[1770578472879,0.00519421,2115.6,2114.9,0.55675481]
[1770578474075,0.58220862,2115.5,2114.9,0.55675481]
[1770578474880,0.00519421,2115.6,2114.9,0.55675481]
[1770578475882,0.58104071,2115.6,2114.9,0.55675481]
[1770578478585,0.00519421,2115.6,2114.9,0.55675481]
[1770578480784,0.58104071,2115.6,2114.9,0.55675481]
[1770578484683,0.00519421,2115.6,2114.9,0.55675481]
[1770578485282,0.58104071,2115.6,2114.9,0.55675481]
[1770578485483,0.58104071,2115.6,2114.8,0.79771288]
[1770578485685,0.58104071,2115.6,2114.9,0.56111288]
[1770578488291,0.58104071,2115.6,2114.8,0.2366]
[1770578488586,0.58104071,2115.6,2114.9,0.56111288]
[1770578488789,0.58104071,2115.6,2114.8,0.2366]
[1770578489085,0.58104071,2115.6,2114.8,0.79771288]
[1770578489288,0.58104071,2115.6,2114.9,0.56111288]
[1770578492292,0.00519421,2115.6,2115.1,0.56111288]
[1770578492586,0.5758465,2116.2,2115.3,0.56111288]
[1770578492791,0.5758465,2116.2,2115.2,0.56111288]
[1770578493185,0.5758465,2116.2,2115.3,0.56111288]
[1770578493386,0.5758465,2116.2,2115.4,0.56111288]
[1770578493590,0.57952614,2116.2,2115.4,0.56111288]
[1770578502898,0.57952614,2116.2,2115.7,0.56111288]
[1770578503194,0.00263937,2116.2,2115.7,0.56111288]
[1770578503399,0.5758465,2116.3,2115.9,0.56111288]
[1770578504294,0.5758465,2116.3,2115.9,0.56451701]
[1770578504492,0.57987198,2116.3,2115.9,0.56451701]
[1770578504693,0.57987198,2116.3,2115.9,0.00340413]
[1770578507904,0.57987198,2116.3,2115.9,0.58122339]
[1770578509002,0.57987198,2116.3,2115.9,0.00340413]
[1770578509203,0.57987198,2116.3,2115.5,0.57781926]
[1770578510203,0.57987198,2116.3,2115.5,0.58275145]
[1770578516710,5.27609105,2116.2,2115.5,0.00493219]
[1770578516911,0.54409105,2116.0,2115.2,0.57781926]
[1770578517812,0.54409105,2116.0,2115.2,0.58383577]
[1770578519119,5.27609105,2115.9,2115.2,0.00601651]
[1770578519514,0.54409105,2115.8,2115.2,0.00601651]
[1770578522321,5.27609105,2115.8,2115.2,0.00601651]
[1770578522519,0.54409105,2115.5,2114.9,0.57781926]
[1770578523427,0.54409105,2115.5,2114.9,0.58201098]
[1770578523825,0.54409105,2115.5,2114.9,0.00419172]
[1770578525730,0.54409105,2115.5,2114.9,0.58201098]
[1770578529135,0.54409105,2115.5,2114.9,0.00419172]
[1770578529829,0.54409105,2115.4,2114.3,0.51553557]
[1770578530033,0.54409105,2115.2,2114.1,0.51553557]
[1770578530833,0.54409105,2115.2,2114.1,0.52149645]
[1770578532238,5.27609105,2115.2,2114.1,0.52149645]
[1770578532430,0.54409105,2115.1,2114.1,0.52149645]
[1770578537636,0.54409105,2115.1,2114.2,0.51852527]
[1770578539331,0.54409105,2115.1,2114.3,0.51852527]
[1770578540533,0.5507554,2115.5,2114.5,0.51477719]
[1770578540736,0.5507554,2115.5,2114.6,0.51477719]
[1770578540937,3.36924526,2115.5,2114.3,0.51477719]
[1770578541237,0.5507554,2115.4,2114.3,0.51477719]
[1770578542440,0.5507554,2115.2,2114.3,0.51477719]
[1770578542639,0.5507554,2115.0,2114.1,0.7569433]
[1770578543029,0.5507554,2114.9,2114.1,0.7569433]
[1770578543227,5.2827554,2114.9,2114.1,0.00596088]
[1770578543433,0.5507554,2114.8,2114.1,0.00596088]
[1770578543638,0.555624,2114.8,2114.1,0.5202633]
[1770578543938,0.555624,2114.8,2114.1,0.00596088]
[1770578548334,5.287624,2114.8,2114.1,0.00596088]
[1770578548537,5.287624,2114.8,2113.6,3.07037012]
[1770578548538,0.5507554,2114.6,2113.7,0.52302843]
[1770578549439,0.5507554,2114.6,2113.7,0.52756711]
[1770578551842,0.5507554,2114.6,2113.8,0.52082448]
[1770578560240,0.5507554,2114.6,2113.9,0.52109815]
[1770578560439,0.0048686,2114.8,2114.1,0.52109815]
[1770578560839,0.0048686,2114.8,2114.2,0.52109815]
[1770578561543,0.555624,2114.8,2114.2,0.52109815]
[1770578565840,0.555624,2114.8,2114.1,3.99717675]
[1770578566046,3.37411386,2114.8,2114.0,0.75855502]
[1770578566243,0.54537289,2114.7,2114.0,0.75855502]
[1770578566647,0.54537289,2114.7,2113.9,0.52186502]
[1770578570250,0.54537289,2114.6,2113.9,0.52186502]
[1770578571147,0.54537289,2114.6,2113.4,2.14229008]
[1770578571148,0.54537289,2114.2,2113.4,0.52506535]
[1770578571341,0.54537289,2114.1,2113.3,0.52506535]
[1770578571543,0.54537289,2114.1,2113.3,0.84199331]
[1770578572250,0.54537289,2114.1,2113.3,0.53068389]
[1770578572950,3.36386275,2114.1,2113.3,0.00561854]
[1770578573145,0.54537289,2114.0,2113.3,0.00561854]
[1770578574845,0.54537289,2113.9,2113.3,0.00561854]
[1770578579858,0.54537289,2113.9,2113.3,0.5329021]
[1770578580051,0.54537289,2113.9,2113.3,0.00561854]
[1770578581556,0.54537289,2113.9,2113.0,0.31593118]
[1770578581750,0.54537289,2113.9,2112.9,0.76410356]
[1770578581951,0.54537289,2113.9,2112.9,0.23682]
[1770578582150,0.54537289,2113.8,2112.9,0.23682]
[1770578582453,0.54537289,2113.8,2112.9,0.24141795]
[1770578583358,0.54537289,2113.8,2112.9,0.76921511]
[1770578585954,0.54537289,2113.8,2113.0,0.52783592]
[1770578586352,0.54537289,2113.8,2112.9,0.76925387]
[1770578586558,0.54537289,2113.8,2112.9,0.24141795]
[1770578587054,0.54537289,2113.8,2112.9,0.00459795]
[1770578587260,0.54537289,2113.6,2112.6,0.52783592]
[1770578588158,0.54537289,2113.6,2112.6,0.53167139]
[1770578588853,3.36386275,2113.6,2112.6,0.00383547]
[1770578590153,0.54537289,2113.5,2112.6,0.00383547]
[1770578592159,5.27737289,2113.5,2112.6,0.00383547]
[1770578592757,0.54537289,2113.4,2112.6,0.00383547]
[1770578593060,0.54537289,2113.1,2112.2,0.52843618]
[1770578593860,0.55143761,2113.1,2112.2,0.53431733]
[1770578594860,0.55143761,2113.1,2112.2,0.00588115]
[1770578595062,0.55143761,2113.1,2112.2,0.53375644]
[1770578595559,0.57380783,2112.9,2112.0,0.52785088]
[1770578595757,0.57380783,2112.9,2111.9,0.53107066]
[1770578596559,0.57380783,2112.9,2111.9,0.53710259]
[1770578598058,0.57380783,2112.8,2111.9,0.53710259]
[1770578598264,0.57380783,2112.5,2111.6,0.53048077]
[1770578598862,0.57380783,2112.5,2111.3,0.53048077]
[1770578598863,0.57380783,2112.4,2111.3,0.53048077]
[1770578599161,0.57380783,2112.2,2111.3,0.53048077]
[1770578599360,0.57380783,2112.2,2111.3,0.53627762]
[1770578599757,0.57380783,2112.2,2111.3,0.8498428]
[1770578599965,0.57380783,2112.2,2111.4,0.5228725]
[1770578603460,0.57380783,2112.2,2111.3,0.52852119]
[1770578604162,2.81848986,2112.4,2111.4,0.52549251]
[1770578604366,0.57380783,2112.6,2111.8,0.52549251]
[1770578605359,0.57380783,2113.0,2111.9,0.52549251]
[1770578606571,0.57380783,2113.0,2112.2,0.49684137]
[1770578607071,0.57987255,2113.1,2112.2,0.49684137]
[1770578607465,0.57987255,2113.1,2112.1,0.49684137]
[1770578609265,0.57987255,2113.1,2112.2,0.51709087]
[1770578609970,0.57987255,2113.1,2112.3,0.51849585]
[1770578615575,0.00606472,2113.1,2112.4,0.75110342]
[1770578615874,0.00606472,2113.1,2112.5,0.51726092]
[1770578616666,13.64548986,2113.6,2112.5,0.75412092]
[1770578616667,0.57380783,2113.4,2112.5,0.75412092]
[1770578616874,0.57380783,2113.4,2112.6,0.51726092]
[1770578617169,0.57380783,2113.7,2112.7,0.5111962]
[1770578617575,0.57380783,2113.7,2112.9,0.51087492]
[1770578617873,0.57933514,2113.7,2112.9,0.51683685]
[1770578619774,0.57933514,2113.7,2112.9,0.00596193]
[1770578619980,0.57933514,2113.7,2112.9,0.51292805]
[1770578631184,0.57933514,2113.7,2112.9,0.00596193]
[1770578631474,0.58664894,2113.6,2112.9,0.00596193]
[1770578633183,3.4051388,2113.6,2112.9,0.00596193]
[1770578634381,2.81848986,2113.6,2112.9,0.00596193]
[1770578634582,0.58664894,2113.5,2112.9,0.00596193]
[1770578635187,2.81848986,2113.6,2112.9,0.51159779]
[1770578635188,0.58664894,2113.4,2112.9,0.51159779]
[1770578638585,5.61825534,2113.6,2112.9,0.51159779]
[1770578638787,0.58664894,2113.3,2112.9,0.00596193]
[1770578639086,0.58664894,2113.3,2112.9,0.50690807]
[1770578639290,0.58664894,2113.3,2112.9,0.00596193]
[1770578639695,0.59041587,2113.3,2112.9,0.00596193]
[1770578639897,0.59041587,2113.3,2112.9,0.50783155]
[1770578640696,0.58664894,2113.1,2112.6,2.13243205]
[1770578640891,0.58664894,2113.1,2112.3,0.50186962]
[1770578641093,3.40514458,2113.0,2112.3,0.50186962]
[1770578641395,0.58664894,2113.0,2112.3,0.50186962]
[1770578641589,0.58664894,2113.2,2112.8,0.50930643]
[1770578641786,3.40514458,2113.1,2112.8,0.00503898]
[1770578641989,0.58664894,2113.0,2112.8,0.00503898]
[1770578643192,0.58664894,2113.0,2112.7,0.76213879]
[1770578644004,0.58664894,2113.0,2112.7,0.76618377]
[1770578644394,0.58664894,2113.1,2112.7,0.76618377]
[1770578644599,0.58664894,2113.1,2112.8,0.56645891]
[1770578644800,0.58664894,2112.9,2111.6,0.56645891]
[1770578645098,0.58664894,2112.8,2111.6,0.56645891]
[1770578645298,0.58664894,2112.7,2111.6,0.56645891]
[1770578645598,0.58664894,2112.5,2111.6,0.56645891]
[1770578645900,0.58664894,2112.5,2111.6,0.57171731]
[1770578646400,3.40514458,2112.4,2111.7,0.56645891]
[1770578646595,0.58664894,2112.9,2111.7,0.56645891]
[1770578649398,0.58664894,2112.7,2111.7,0.56645891]
[1770578650204,0.58664894,2112.5,2111.7,0.56645891]
[1770578652608,0.58664894,2112.3,2111.7,0.56645891]
[1770578653008,3.40514458,2112.2,2111.7,0.56645891]
[1770578653201,0.58664894,2112.2,2111.7,0.56645891]
[1770578653809,0.58664894,2113.0,2111.7,0.56645891]
[1770578654009,0.58664894,2112.8,2111.7,0.56645891]
[1770578655214,0.90597824,2112.6,2111.7,0.56645891]
[1770578655604,0.90597824,2112.4,2111.7,0.56645891]
[1770578656114,2.81849564,2112.3,2111.7,0.56645891]
[1770578657503,0.90597824,2112.4,2111.7,0.56645891]
[1770578657704,2.81849564,2112.3,2111.7,0.56645891]
[1770578658507,3.72447388,2112.3,2111.7,0.56645891]
[1770578658706,4.739,2112.9,2111.7,0.56645891]
[1770578658909,0.90597824,2112.8,2111.7,0.56645891]
[1770578660412,3.72447388,2112.7,2111.7,0.56645891]
[1770578660603,0.90597824,2112.6,2111.7,0.56645891]
[1770578665410,2.81849564,2112.5,2111.7,0.56645891]
[1770578665613,0.90597824,2112.4,2111.7,0.56645891]
[1770578670310,2.81849564,2112.3,2111.7,0.56645891]
[1770578670504,0.90597824,2112.2,2111.7,0.56645891]
[1770578674315,0.03730154,2112.2,2111.7,0.56645891]
[1770578675314,2.85579718,2112.2,2111.7,0.56645891]
[1770578676515,0.03730154,2112.2,2111.7,0.56645891]
[1770578680315,0.90597824,2113.1,2111.9,0.88833696]
[1770578680521,0.90597824,2113.1,2112.0,0.88833696]
[1770578681925,0.90597824,2113.1,2112.1,0.88833696]
[1770578684820,0.90597824,2113.1,2112.3,1.16549066]
[1770578685024,0.90597824,2113.1,2112.4,1.66327034]
[1770578692130,0.90597824,2113.1,2112.5,1.16549066]
[1770578692429,0.90597824,2113.1,2112.4,1.66327034]
[1770578695632,1.65871223,2113.3,2112.4,1.66327034]
[1770578696529,1.65871223,2113.3,2112.5,1.16549066]
[1770578696733,1.65871223,2113.3,2112.6,1.66327034]
[1770578698637,0.00376693,2113.3,2112.6,1.66327034]
[1770578698836,1.65871223,2113.3,2112.6,1.66327034]
[1770578708139,1.65871223,2113.3,2112.5,1.90014034]
[1770578715346,1.65871223,2113.3,2112.6,2.37319685]
[1770578716647,1.65871223,2113.3,2112.5,2.82989867]
[1770578716850,1.65871223,2113.3,2112.5,2.37319685]
[1770578719249,1.65871223,2113.3,2112.4,2.83668221]
[1770578719451,1.82889833,2112.8,2112.0,2.37319685]
[1770578719854,1.83338002,2112.4,2112.0,2.37319685]
[1770578725061,2.25783418,2112.6,2112.0,2.37319685]
[1770578731362,2.83444108,2112.9,2112.4,2.37319685]
[1770578731668,2.43709068,2113.0,2112.4,2.37319685]
[1770578732267,2.83444108,2113.1,2112.4,2.37319685]
[1770578732470,5.27153176,2113.1,2112.4,2.37319685]
[1770578732864,2.43709068,2113.1,2112.4,2.37319685]
[1770578733463,2.83820801,2113.3,2112.6,2.37319685]
[1770578733464,2.43709068,2113.2,2112.6,2.37319685]
[1770578733672,5.27529869,2113.3,2112.6,2.37319685]
[1770578733866,2.43709068,2113.2,2112.6,2.37319685]
[1770578735469,2.43709068,2113.1,2112.4,2.37319685]
[1770578740075,2.43709068,2112.5,2111.9,2.37319685]
[1770578742472,2.43709068,2112.6,2111.9,2.37319685]
[1770578744680,5.27153176,2112.8,2112.3,2.37319685]
[1770578746184,3.14459834,2112.7,2112.3,2.37319685]
[1770578746875,2.83444108,2113.0,2112.5,3.23710544]
[1770578747077,5.97903942,2113.0,2112.5,3.23710544]
[1770578747277,3.14459834,2112.9,2112.5,3.23710544]
[1770578748876,3.14459834,2112.9,2112.3,3.23710544]
[1770578750583,3.14459834,2112.9,2112.2,3.23710544]
[1770578750779,3.14459834,2112.8,2112.2,3.23710544]
[1770578751182,4.31103431,2112.8,2111.9,3.23710544]
[1770578751383,3.14459834,2112.7,2111.9,3.23710544]
[1770578751983,3.14459834,2112.5,2111.9,3.23710544]
[1770578756885,3.14459834,2112.4,2111.9,3.23710544]
[1770578760381,3.14459834,2112.4,2111.7,3.23710544]
[1770578761588,2.82895288,2112.6,2112.2,1.16643597]
[1770578761782,3.14459834,2113.0,2112.4,1.16643597]
[1770578762694,3.14459834,2113.2,2112.4,1.16643597]
[1770578765188,3.14459834,2113.2,2112.5,3.23710544]
[1770578769684,3.14459834,2113.2,2112.7,3.23710544]
[1770578771286,3.14459834,2113.2,2112.6,3.23710544]
[1770578774094,3.14459834,2113.0,2111.9,3.23710544]
[1770578774297,3.14459834,2113.0,2112.1,3.23710544]
[1770578784898,3.14459834,2113.0,2112.3,3.91866243]
[1770578787699,4.26280032,2113.3,2112.5,3.91866243]
[1770578789695,4.26280032,2113.3,2112.4,6.75109774]
[1770578789903,4.25903339,2113.2,2112.3,3.91866243]
[1770578793405,4.25903339,2113.2,2112.2,2.83243531]
[1770578793704,4.25903339,2113.2,2112.3,3.91866243]
[1770578798211,4.25903339,2113.1,2112.3,3.91866243]
[1770578803521,4.25903339,2113.0,2112.1,6.75109774]
[1770578803818,4.25903339,2113.0,2112.0,3.91866243]
[1770578804018,4.25903339,2112.9,2112.0,3.91866243]
[1770578812327,5.06800217,2112.8,2112.0,3.91866243]
[1770578812529,5.06800217,2112.6,2111.9,4.77099956]
[1770578817124,5.06800217,2113.0,2111.9,4.77099956]
[1770578818728,5.06800217,2112.9,2111.9,4.77099956]
[1770578819332,5.06800217,2112.7,2111.9,4.77099956]
[1770578821528,5.06800217,2113.0,2111.9,4.77099956]
[1770578821732,5.06800217,2113.0,2112.0,4.77099956]
[1770578822131,5.0717691,2113.3,2112.3,4.77099956]
[1770578830238,0.00376693,2113.3,2112.5,4.77099956]
[1770578830435,1.55034488,2113.7,2113.1,4.77099956]
[1770578830939,5.06800217,2113.8,2113.1,4.77099956]
[1770578831327,5.07264352,2113.8,2113.1,4.77481846]
[1770578831532,5.06800217,2114.3,2113.3,4.77099956]
[1770578832537,5.07269335,2114.3,2113.3,4.77099956]
[1770578833640,5.07269335,2114.3,2113.3,5.93690989]
[1770578834138,0.00469118,2114.3,2113.3,4.77099956]
[1770578834335,5.06800217,2114.9,2114.0,4.77099956]
[1770578835338,5.07391746,2114.9,2114.0,4.77099956]
[1770578837541,5.07391746,2114.9,2114.0,5.08030398]
[1770578838740,0.00591529,2114.9,2114.0,5.08030398]
[1770578839041,5.53427447,2115.1,2114.0,5.08030398]
[1770578839247,5.53427447,2115.1,2114.0,5.31700398]
[1770578839846,5.53965039,2115.1,2114.0,5.31700398]
[1770578840350,5.77087447,2114.9,2113.6,5.2478411]
[1770578840645,5.53427447,2114.7,2113.6,5.2478411]
[1770578845749,5.53427447,2115.0,2113.8,5.2478411]
[1770578845947,5.53427447,2115.0,2114.0,5.4845411]
[1770578846342,0.00537592,2115.1,2114.0,5.4845411]
[1770578846539,5.53965039,2115.1,2114.0,5.4845411]
[1770578848450,5.53965039,2115.1,2114.0,5.2478411]
[1770578854356,5.53965039,2115.1,2114.0,5.4845311]
[1770578864165,5.53965039,2115.1,2114.0,5.2478411]
[1770578868161,6.11943962,2115.0,2114.0,5.2478411]
[1770578868368,6.11943962,2114.9,2113.7,6.10542679]
[1770578868567,6.11943962,2114.7,2113.7,6.10542679]
[1770578871067,6.11943962,2114.7,2113.7,8.9378621]
[1770578871275,6.11943962,2114.7,2113.8,6.10542679]
[1770578879980,6.11943962,2114.7,2113.6,8.9378621]
[1770578880183,6.11943962,2114.7,2113.6,6.10542679]
[1770578880478,6.11943962,2114.5,2113.6,6.10542679]
[1770578880880,1.16480121,2114.2,2113.6,6.10542679]
[1770578881181,6.11943962,2114.1,2113.6,6.10542679]
[1770578881381,6.11943962,2114.4,2113.6,6.10542679]
[1770578881879,7.28424083,2114.4,2113.6,6.10542679]
[1770578882275,6.11943962,2114.1,2113.5,6.10542679]
[1770578882483,6.11943962,2113.9,2113.3,6.34219679]
[1770578882780,7.28424083,2114.0,2113.3,6.34219679]
[1770578883182,6.11943962,2113.5,2113.1,0.0038189]
[1770578883480,6.11943962,2113.5,2112.9,6.10542679]
[1770578884381,6.12412404,2113.5,2112.9,6.1093195]
[1770578888386,0.00468442,2113.5,2112.9,6.1093195]
[1770578893184,6.12412404,2113.5,2112.9,6.1093195]
[1770578896890,0.00468442,2113.5,2112.9,6.1093195]
[1770578898085,2.81447957,2114.0,2112.9,6.1093195]
[1770578898389,5.93094448,2114.2,2113.2,6.08509609]
[1770578899185,0.00527441,2114.2,2113.2,6.32187609]
[1770578903390,5.93621889,2114.2,2113.2,6.32187609]
[1770578915993,5.93621889,2114.2,2113.3,0.23677]
[1770578916199,5.93621889,2114.2,2113.4,6.08509609]